Cogmind - Beta 16 @@@ ROGUE MODE // 2025.11.17 @ 17:00:15 Player: chebyrekser Result: Destroyed by FF-ZAN(R) with Subdweller Laser Performance ------------- Evolutions (0) 0 Regions Visited (2) 400 Robots Destroyed (46) 230 Value Destroyed (827) 827 Prototype IDs (0) 0 Alien Tech Used (0) 0 Bonus (0) 0 TOTAL SCORE: 1457 Bonus ------- None Cogmind --------- Core Integrity 0/250 Matter 155/300 Energy 103/250 System Corruption 1% Temperature Cool (6) Movement Core (900) Ox17 Location -10/Subcaves Parts ------- > --- POWER (1) -------- Ion Engine > --- PROPULSION (2) --- Aluminum Leg > --- UTILITY (2) ------ Disposable Heat Sink High-capacity Storage Unit > --- WEAPON (2) ------- Assault Rifle Subdweller Machine Gun > --- INVENTORY (20) --- Ion Engine Ion Engine Aluminum Leg Compact Wheel Compact Wheel Large Storage Unit High-capacity Matter Pod (200) High-capacity Matter Pod (200) Subdweller Optics Seismic Detector Hacking Suite Medium Laser Medium Laser Medium Laser Battle Rifle Light Cannon Grenade Launcher Mining Laser Peak State ------------ > --- POWER ------------ Ion Engine > --- PROPULSION ------- Light Treads Light Treads > --- UTILITY ---------- Disposable Heat Sink High-capacity Storage Unit > --- WEAPON ----------- Assault Rifle Subdweller Machine Gun > --- INVENTORY -------- Ion Engine Ion Engine Ion Engine Aluminum Leg Aluminum Leg Compact Wheel Compact Wheel Heat Sink Large Storage Unit High-capacity Matter Pod High-capacity Matter Pod Seismic Detector Hacking Suite Medium Laser Medium Laser Medium Laser Battle Rifle Light Cannon Grenade Launcher Mining Laser [Rating: 11] Favorites ----------- Power Ion Engine Engine Ion Engine Propulsion Light Treads Treads Light Treads Leg Aluminum Leg Wheel Compact Wheel Utility Seismic Detector Device Seismic Detector Storage High-capacity Storage Unit Protection Light Armor Plating Weapon Light Assault Rifle Energy Gun Particle Gun Ballistic Gun Light Assault Rifle Launcher Grenade Launcher Special Weapon Mining Laser Build | -11 -10 -10 ------- Run | Yrd Mat Sub Slots Evolved . | . . . Power . | . . . Propulsion . | . . . Utility . | . . . Weapon . | . . . Parts Attached 26 | 7 13 6 Power 5 | 1 3 1 Engine 5 | 1 3 1 Core . | . . . Reactor . | . . . Propulsion 6 | 2 3 1 Treads 2 | 1 1 . Leg 1 | . . 1 Wheel 3 | 1 2 . Hover . | . . . Flight . | . . . Utility 7 | 2 3 2 Device 3 | 1 1 1 Storage 3 | 1 2 . Processor . | . . . Hackware . | . . . Protection 1 | . . 1 Artifact . | . . . Weapon 8 | 2 4 2 Energy Gun 2 | 1 1 . Energy Cannon . | . . . Ballistic Gun 4 | 1 1 2 Ballistic Cannon . | . . . Launcher 1 | . 1 . Special Weapon 1 | . 1 . Impact Weapon . | . . . Slashing Weapon . | . . . Piercing Weapon . | . . . Special Melee Weapon . | . . . Unidentified Prototypes . | . . . Parts Lost 9 | . 5 4 Power 4 | . 3 1 Propulsion 2 | . . 2 Utility 1 | . 1 . Weapon 2 | . 1 1 Highest Loss Streak 3 | . 3 3 To Critical Strikes . | . . . Average Backups 18 | 5 18 19 Power 2 | . 2 3 Propulsion 3 | 3 3 4 Utility 5 | . 5 6 Weapon 6 | . 6 6 Tool/Special . | . . . Unused Backups 20 | 1 5 14 Power 2 | . . 2 Propulsion 4 | 1 2 1 Utility 6 | . . 6 Weapon 8 | . 3 5 Tool/Special . | . . . Average Slot Usage (%) 99 | . 99 99 Engine 13 | . 13 13 Treads 23 | . 21 27 Wheel 4 | . 5 . Device 13 | . 13 12 Storage 14 | . 14 14 Energy Gun 9 | . 12 3 Ballistic Gun 16 | . 14 22 Peak Build Rating 11 | 7 10 11 Average Rating 9 | 5 9 9 On Entrance 5 | . 7 10 Avg Prop Armor Cover (%) 13 | 13 13 . Naked Turns . | . . . Heaviest Build 54 | 11 51 54 Greatest Support 40 | 20 40 40 Greatest Overweight (x) 3 | 1 3 3 Average Overweight (x) 1 | . 1 1 Largest Inventory Capacity 20 | 8 20 20 Average Capacity 18 | 7 19 20 Most Carried 20 | 8 20 20 Average Carried 18 | 5 18 19 Final Capacity 20 | 8 20 20 Final Carried 20 | 8 20 18 Class Distribution -------------------- 83% | Mutant 16% | Scavenger-Mutant Dominant Class ---------------- Mutant | -10/Materials Mutant | -10/Subcaves Resources | -11 -10 -10 ----------- Run | Yrd Mat Sub Matter Collected 1125 | 282 744 99 Remotely . | . . . Salvage Created 1282 | 137 946 199 Parts 89 | 7 65 17 Haulers Intercepted 2 | . 2 . Recyclers Shooed . | . . . Parts Field Recycled . | . . . Retrieved Matter . | . . . Parts Self-Destructed 10 | . . 10 Prevented . | . . . Parts Restored . | . . . Kills | -11 -10 -10 ------- Run | Yrd Mat Sub Combat Hostiles Destroyed 27 | . 18 9 Guns 14 | . 9 5 AOE 13 | . 9 4 Classes Destroyed 10 | 2 7 1 Worker 2 | . 2 . Builder 3 | . 3 . Tunneler 4 | 2 2 . Hauler 2 | . 2 . Recycler 4 | 1 3 . Operator 1 | . 1 . Watcher 3 | . 3 . Swarmer 13 | . 9 4 Grunt 11 | . 9 2 Subdweller 3 | . . 3 Best Kill Streak 10 | 2 10 4 Combat Bots Only 6 | . 6 4 Max Kills in Single Turn 3 | 1 2 3 Gunslinging . | . . . Exploded 3 | . 2 3 Melee . | . . . Uniques/NPCs Destroyed . | . . . Combat | -11 -10 -10 -------- Run | Yrd Mat Sub Hostile Shots Fired 145 | . 85 60 Missed 42 | . 21 21 Hits 103 | . 64 39 Projectile 103 | . 64 39 AOE 4 | . . 4 Critical Strikes 1 | . . 1 Damage Taken 1403 | . 681 722 Core 271 | . 116 155 Absorbed by Shields . | . . . Regen/Repaired (Parts) 197 | . 197 . Core Remaining (%) 100 | 100 . . Volleys Fired 110 | 12 76 22 Largest 2 | 2 2 2 Hottest 120 | 60 120 85 Shots Fired 207 | 24 144 39 Gun 191 | 24 133 34 Cannon . | . . . Launcher 13 | . 8 5 Special 3 | . 3 . Kinetic 131 | 12 92 27 Thermal 63 | 12 44 7 Explosive 13 | . 8 5 Electromagnetic . | . . . Robot Hit Streak 16 | 5 16 12 Robot Miss Streak 3 | 3 2 2 Penetration Max . | . . . Secondary Targets 3 | . 2 1 Max Gunslinging Chain 1 | . 1 1 Shots Hit Robots 135 | 14 94 27 Core Hits 79 | 7 55 17 Critical Kills . | . . . Critical Parts Destroyed 1 | . 1 . Critical Strikes 1 | . 1 . Destroy 1 | . 1 . Melee Attacks . | . . . Impact . | . . . Slashing . | . . . Piercing . | . . . Sneak Attacks . | . . . Combat Hostiles . | . . . Follow-up Attacks . | . . . Damage Inflicted 2234 | 131 1623 480 Guns 1433 | 131 955 347 Cannons . | . . . Explosions 801 | . 668 133 Melee . | . . . Ramming . | . . . Kinetic 818 | 64 510 244 Thermal 615 | 67 445 103 Explosive 678 | . 545 133 Electromagnetic 123 | . 123 . Impact . | . . . Slashing . | . . . Piercing . | . . . Highest Corruption 1 | . 1 1 Average Corruption 1 | . 1 1 Corruption Purged . | . . . Corruption Blocked . | . . . Effects 18 | . 14 4 Message Errors 7 | . 5 2 Matter Fused 1 | . 1 . Energy Discharges 3 | . 2 1 Data Loss (minor) 1 | . 1 . Data Loss (major) 2 | . 1 1 Misfires 3 | . 3 . Alerts 1 | . 1 . Overload Shots . | . . . Overflow Damage 28 | . 28 . Projectiles . | . . . Explosions 28 | . 28 . Melee . | . . . Knockbacks . | . . . Impact . | . . . Kinetic . | . . . Secondary . | . . . Self-Inflicted Damage 36 | . 36 . Shots 1 | . 1 . Rammed . | . . . Targets Rammed . | . . . Kicked . | . . . Crushed . | . . . Highest Temperature 184 | 40 184 25 Average Temperature 41 | 20 47 12 Received Heat Transfer 390 | . 258 132 Siege Activations . | . . . Martial Activations . | . . . Shielding Activations . | . . . Robots Disrupted . | . . . Combat Hostiles . | . . . Robots Corrupted . | . . . Combat Hostiles . | . . . Parts Fried . | . . . Impact Corruptions . | . . . Robots Melted . | . . . Combat Hostiles . | . . . Parts Melted . | . . . Heat Transferred 1425 | 150 1016 259 Parts Sabotaged . | . . . Parts Stolen . | . . . Parts Stripped . | . . . Power Chain Reactions . | . . . Alert | -11 -10 -10 ------- Run | Yrd Mat Sub Maximum Alert Level 1 | . 1 . Low Security (%) 81 | 100 80 . Level 1 18 | . 19 . Level 2 . | . . . Level 3 . | . . . Level 4 . | . . . Level 5 . | . . . High Security . | . . . Max Security . | . . . Peak Influence 282 | 10 282 . Initial . | . . . Average 101 | 1 106 . Influence Increases 820 | 15 645 160 Destroy 0b10 Robot/C 480 | . 360 120 Destroy 0b10 Robot/NC 95 | 15 80 . Destroy Leader 80 | . 70 10 Successful Hack 38 | . 38 . Disable Machine 60 | . 60 . Destroy Structure 37 | . 37 . Lose Combat Pursuer 30 | . . 30 Influence Decreases 820 | 15 607 198 Entered New Map 19 | . . 19 Time Decay 761 | 15 567 179 Lost Part 40 | . 40 . Squads Dispatched 3 | . 3 . Investigation 2 | . 2 . Extermination . | . . . Reinforcement 1 | . 1 . Assault . | . . . Garrison . | . . . Intercept . | . . . Searches Triggered . | . . . Construction Impeded . | . . . Haulers Reinforced . | . . . Active Scanning Responses . | . . . Cargo Convoy Interrupts . | . . . Stealth | -11 -10 -10 --------- Run | Yrd Mat Sub Distress Signals 2 | . 2 . Communications Jammed . | . . . Distress Signals . | . . . Times Spotted 37 | . 27 10 Peak Tracking Total 6 | . 6 6 Tactical Retreats 1 | . . 1 Traps | -11 -10 -10 ------- Run | Yrd Mat Sub Traps Triggered 3 | . 3 . Indirectly 1 | . 1 . Trap Hack Attempts . | . . . Triggered . | . . . Disarmed . | . . . Reprogrammed . | . . . Reused . | . . . Traps Extracted . | . . . Installed . | . . . Triggered . | . . . Machines | -11 -10 -10 ---------- Run | Yrd Mat Sub Machines Disabled 4 | . 4 . Max in Single Turn 2 | . 2 . Machines Repaired . | . . . Machines Dismantled . | . . . Machines Sabotaged . | . . . Overloaded Fab Kills . | . . . Hacking | -11 -10 -10 --------- Run | Yrd Mat Sub Machines Accessed 10 | . 10 . Terminals 7 | . 7 . Fabricators . | . . . Repair Stations 1 | . 1 . Recycling Units 2 | . 2 . Scanalyzers . | . . . Garrison Access . | . . . Total Hacks 27 | . 27 . Successful 19 | . 19 . Failed 8 | . 8 . Catastrophic 1 | . 1 . Database Lockouts . | . . . Manual 19 | . 19 . Terminals 20 | . 20 . Fabricators . | . . . Repair Stations 5 | . 5 . Recycling Units 2 | . 2 . Scanalyzers . | . . . Garrison Access . | . . . Terminal Hacks 5 | . 5 . Robot Analysis 4 | . 4 . Locate Traps 1 | . 1 . Fabricator Hacks . | . . . Repair Station Hacks 4 | . 4 . Scan Component 2 | . 2 . Repair 2 | . 2 . Recycling Unit Hacks 2 | . 2 . Retrieve Components 2 | . 2 . Scanalyzer . | . . . Garrison Access Hacks . | . . . Unauthorized Hacks 8 | . 8 . Terminals 8 | . 8 . Botnet 2 | . 2 . Operators 1 | . 1 . Skim 5 | . 5 . Fabricators . | . . . Repair Stations . | . . . Recycling Units . | . . . Scanalyzers . | . . . Garrison Access . | . . . Data Cores Recovered . | . . . Used . | . . . Hacking Detections 8 | . 8 . Full Trace Events . | . . . Feedback Events . | . . . Feedback Blocked . | . . . Robot Schematics Acquired . | . . . Robots Built . | . . . Authchips . | . . . Time . | . . . Total Robot Build Rating . | . . . Part Schematics Acquired . | . . . Parts Built . | . . . Authchips . | . . . Time . | . . . Total Part Build Rating . | . . . Part Studies Acquired . | . . . Parts Repaired 2 | . 2 . Time 52 | . 52 . Parts Recycled . | . . . Recycled Matter . | . . . Retrieved Matter . | . . . Retrieved Components 3 | . 3 . Parts Scanalyzed . | . . . Part Schematics Acquired . | . . . Parts Damaged . | . . . Bothacking | -11 -10 -10 ------------ Run | Yrd Mat Sub Used RIF Installer . | . . . Robots Hacked . | . . . Non-combat . | . . . Combat . | . . . Robot Hacks Applied . | . . . Relay Couplers Released . | . . . Fabnet Peak Effective % . | . . . Robots Rewired . | . . . Allies Hacked . | . . . Hacks Repelled . | . . . Allies | -11 -10 -10 -------- Run | Yrd Mat Sub Total Allies . | . . . Largest Group . | . . . Highest-Rated Group . | . . . Highest-Rated Ally . | . . . Total Orders . | . . . Ally Attacks . | . . . Total Damage . | . . . Kills . | . . . Allies Corrupted . | . . . Allies Melted . | . . . Intel | -11 -10 -10 ------- Run | Yrd Mat Sub Active Infowar (turns) 2919 | 61 2213 645 Seismic 2919 | 61 2213 645 Robot Analysis Total 4 | . 4 . Derelict Logs Recovered . | . . . Drone Launches . | . . . Drone Recoveries . | . . . Exploration | -11 -10 -10 ------------- Run | Yrd Mat Sub Turns Passed 3230 | 121 2229 880 Spaces Moved 1388 | 69 1029 290 Core 8 | 8 . . Treads 729 | 5 435 289 Legs . | . . . Wheels 651 | 56 594 1 Hover . | . . . Flight . | . . . Fastest Speed 50 | 50 95 145 Average Speed 186 | 89 178 239 Slowest Speed 240 | 160 240 240 Overloaded Moves . | . . . Propulsion Burnouts . | . . . Robots Hopped . | . . . Potential Cave-ins . | . . . Cave-ins Triggered . | . . . Exploration Rate (%) 40 | 5 99 18 Regions Visited 2 Branch Regions 1 Pre-discovered Areas 4 | . 3 1 Known Exits Taken 1 | . 1 . Unknown Exits Taken 1 | 1 . . Scrap Searched . | . . . Spaces Dug 31 | . 14 17 Terrain Destroyed 64 | . 35 29 Melee . | . . . Projectile 3 | . 3 . AOE 61 | . 32 29 Terrain Rammed . | . . . Walls Destroyed . | . . . Machines Disabled . | . . . Actions | -11 -10 -10 --------- Run | Yrd Mat Sub Total 1834 | 103 1296 435 Wait 246 | 6 139 101 Move 1386 | 68 1028 290 Hop . | . . . Pick Up 35 | 9 23 3 Fast Attach 12 | 7 3 2 Attach 7 | . 4 3 Detach . | . . . Swap 23 | . 13 10 Drop 15 | 1 10 4 Fire 110 | 12 76 22 Melee . | . . . Ram . | . . . Kick . | . . . Crush . | . . . Escape Stasis . | . . . Rewire . | . . . Trap . | . . . Miscellaneous . | . . . Route ------- -11/Scrapyard -10/Materials (discovered 6 exits: [*Mat x3] / [*Min x2] / *Sub) -10/Subcaves History --------- Turn | Location | Event 3 | -11/Scrapyard | Discovered new exit (range 16) 122 | -11/Scrapyard | Entered Materials 303 | -10/Materials | Build established: Mutant 349 | -10/Materials | Discovered new exit (range 15) 543 | -10/Materials | Discovered new exit (range 15) 671 | -10/Materials | Lost 3 parts (2p1w) 805 | -10/Materials | Discovered new exit (range 15) 1201 | -10/Materials | Discovered new exit (range 16) 1432 | -10/Materials | Discovered new exit (range 15) 1494 | -10/Materials | Repaired Lgt. Treads 1521 | -10/Materials | Repaired Lgt. Treads 1624 | -10/Materials | Loaded intel: 18 trap records 1689 | -10/Materials | Learned 4 Subcaves zone layouts 1865 | -10/Materials | Identified exit to Subcaves 2127 | -10/Materials | Build established: Scavenger-Mutant 2351 | -10/Materials | Entered Subcaves 2359 | -10/Subcaves | Core integrity fell below 50% 2667 | -10/Subcaves | Build established: Mutant 2718 | -10/Subcaves | Learned location of Zion (-7) 2718 | -10/Subcaves | Met a Zionite searching for "candidates" 3215 | -10/Subcaves | Core integrity fell below 20% 3216 | -10/Subcaves | Ambushed by Subdweller buried in earth 3231 | -10/Subcaves | Destroyed by FF-ZAN(R) with Subdweller Laser Last Messages --------------- we haven't found any suitable candidates yet." 02718_ ZA-86Z(z): "Hey you! It's really dangerous down here, I feel that you could die at any moment. For your health and safety might I suggest a trip to Zion?" World map updated: -7/Zion. 02849_ :KEXQXDS AS=0AACL7OUXM 02896_ S-10 Pest destroyed. 02902_ Flight Unit fries itself beyond repair. 02903_ Lgt. Ion Engine fries itself beyond repair. 02903_ The unstable cave ceiling collapses. 02971_ 2H-J2Z(u) tweaks Twisted Machinery. 03205_ Subatomizers dissect the Lrg. Storage Unit, destroying it. 03212_ Ion Engine destroyed. 03216_ 2H-J2Z(u) tweaks Twisted Machinery. 03217_ FF-ZAN(R): "NOSTUCKSUB!" 03217_ ZI-13M(R) destroyed. 03225_ Lgt. Treads destroyed. Map ----- +----------------------------------------------------+ | ?????????????????????????# #??????????? | | ?????????????????????????# #??????????? | | ?????????????????????????# #### ##??????????? | | ?????????????? ???????## ##### #???????????? | | ????????????? ??????## ## ## ##??????????? | | ?????????????# ?????## ### #??????????? | | ?????????????# ?????# ## ###??????????? | | ?????????????# ?????## # ##????????????? | | ???????????### ??????## #?????????????? | | ???????????# ???????## ##?##??????????? | | ???????????# *#???????## ###### ##?????????? | | ???????????# =#????????### ##### #?????????? | | ???????????### %#??????????# ##?????????? | | ????????#### # ##????????## ##??????????? | | ?####???# ## #???????## #???????????? | | ?# ##?## #??????## ##???????????? | | ?# ### #?????## #####????????????? | | ?# ##????; ;#???????????????? | | ?# ## ##???# #???????????????? | | ?## ## ###?;; %= #???????????????? | | ?## ## # ### ####????????????? | | ?# ### #????????????? | | ?# ### | #????????????? | | ?# ###?# # ##????????????? | | ?# #???## ### ###?????????????? | | ## ########### @ ; ;#???????????????? | | ###??# ##???????????????? | | #### ##???????????????? | | # ## ; ####????????????? | | # """"" # R ; #????????????? | | #### "##"" ;; #???????????? | | ##??# "###"" # # ;; # ####???????????? | | ###?# "#?#""u#### # # ##??????????????? | | ???# ##?##"##??""##########???????????????? | | ???## "#???###??#""##???????????????????????? | | ???# "#????????""""#???????????????????????? | | ???# "#???????# """#???????????????????????? | | ???# " #??????? #######??????????????????? | | ???# """ ##???????????## # #??????????????????? | | ???### " ##???????????? ##?????????????????? | | ?????# ? ##????????????? ### #?????????????????? | | ?????? ?#??????????????? #### #?????????????????? | | ???????????????????????? ## ##????????????????? | | ???????????????????????? ## ##???????????????? | | ????????????????????????# ### ##??????????????? | | ????????????????????????#### # #??????????????? | | ???????????????????????? ###### ###????????????? | | ???????????????????????? #?## ## ##???????????? | | ???????????????????????? #### ## ##??????????? | | ???????????????????????? # ## #??????????? | +----------------------------------------------------+ Best States ------------- Heat Dissipation 25 Coolant Potential 50 Energy Generation 10 Energy Capacity 250 Matter Stores 300 Matter Capacity 300 Sight Range 16 Terrain Scan Density 10 Armor Coverage 150 Evasion (%) 44 Recoil Reduction 2 Item Schematics ----------------- None Robot Schematics ------------------ None Fabricated ------------ Nothing Repaired ---------- Lgt. Treads | 23% | -10/Materials Lgt. Treads | 35% | -10/Materials Studied --------- None Alien Tech Used ----------------- None Achievements -------------- None Challenges ------------ None Game ------ Seed BombardmentInsulationTube Manual? 0 Play Time 00:16:28 Cumulative 276.1 hours Start 2025.11.16 @ 23:59:19 End 2025.11.17 @ 17:00:15 Sessions 2 Manual Loads 0 Difficulty Rogue Special Mode None Game No. 79 Rogue 73 Adventurer 0 Explorer 6 Win Type - Total 15 Types 6/1/2/1/1/0/2/1/0/1 Lore% 82 Gallery% 75 Achievement% 64 Wizard Run 0 Options --------- Layout 1 ASCII 0 Keyboard 0 Movement Mouse Keybinds 0 Fullscreen 2 Font 24/Smallcaps Map View 50x35 Zoom Use 0% Tactical HUD 1 Map Filters NONE Filters NONE Steam 1 RUN: 7a6549b5-365a-4793-bd67-7b729443015b